{"text_format":"1","workbook":"xlsx","n_sheets":5,"sheets":["M1- -Select-","M2- -Select-","M3- -Select-","Drop down options","Interpreting summary scores"],"not_rendered":{"charts":0,"images":1,"macros":1,"external_links":0,"defined_names":0,"comments":0,"pivot_tables":0},"unopened":[],"bounds":{"document_bytes":16777216,"sheet_cells":100000,"rows_first":2000,"rows_last":500,"rows_between":2000,"halvings":0,"cell_chars":16384,"cell_head_chars":4096},"cells_cut":0,"cells_raw":0,"read":"whole","date_system":"1900"}

{"sheet":"M1- -Select-","index":0,"n_rows":60,"n_cols":98,"rows_kept":60,"cut":false,"hidden":false,"merged":[[39,1,39,2],[39,3,39,4],[39,5,39,6],[37,1,37,2],[37,3,37,4],[37,5,37,6],[37,7,37,10],[38,1,38,2],[38,3,38,4],[38,5,38,6],[38,7,38,10],[35,1,35,2],[35,3,35,4],[35,5,35,6],[35,7,35,10],[36,1,36,2],[36,3,36,4],[36,5,36,6],[36,7,36,10],[33,1,33,2],[33,3,33,4],[33,5,33,6],[33,7,33,10],[34,1,34,2],[34,3,34,4],[34,5,34,6],[34,7,34,10],[27,90,27,91],[27,92,27,93],[27,94,27,95],[27,96,27,97],[32,1,32,6],[32,7,32,10],[27,75,27,76],[27,77,27,78],[27,79,27,80],[27,81,27,82],[27,83,27,84],[27,88,27,89],[27,54,27,55],[27,59,27,60],[27,61,27,62],[27,63,27,64],[27,68,27,69],[27,73,27,74],[27,42,27,43],[27,44,27,45],[27,46,27,47],[27,48,27,49],[27,50,27,51],[27,52,27,53],[27,11,27,12],[27,13,27,14],[27,40,27,41],[27,15,27,16],[27,17,27,18],[27,19,27,20],[27,21,27,22],[27,23,27,24],[27,25,27,26],[27,27,27,28],[27,29,27,30],[27,31,27,32],[27,36,27,37],[27,38,27,39],[27,0,27,1],[27,3,27,4],[27,5,27,6],[27,7,27,8],[27,9,27,10],[12,73,12,86],[12,88,12,97],[13,5,13,6],[13,7,13,8],[13,9,13,12],[13,13,13,30],[13,31,13,32],[13,36,13,57],[13,59,13,66],[13,68,13,69],[12,70,12,71],[13,70,13,71],[13,73,13,86],[13,88,13,97],[0,0,0,1],[12,3,12,32],[12,36,12,57],[12,59,12,66],[12,68,12,69]]}
["K-2 Facilitator Spreadsheet"]
[]
["General information"]
["Date reviews compiled:"]
["Name of materials:"]
["Intended grade level(s):",{"$f":"IF(J1=\"\",\"-Select-\")","v":"-Select-"}]
["Materials type:",{"$f":"IF(J1=\"\",\"-Select-\")","v":"-Select-"}]
[]
[]
[]
[]
[]
["Compiling reviewer ratings",null,null,"Foundational reading skills",null,null,null,null,null,null,null,null,null,null,null,null,null,null,null,null,null,null,null,null,null,null,null,null,null,null,null,null,null,null,null,null,"Reading comprehension for literary and informational texts",null,null,null,null,null,null,null,null,null,null,null,null,null,null,null,null,null,null,null,null,null,null,"Writing development and skills",null,null,null,null,null,null,null,null,"Speaking and listening development and skills",null,null,null,null,"Language development and skills",null,null,null,null,null,null,null,null,null,null,null,null,null,null,"Overall Rating"]
[null,null,null,null,null,"Print concepts",null,"Phonological awareness",null,"Phonemic awareness",null,null,null,"Phonics",null,null,null,null,null,null,null,null,null,null,null,null,null,null,null,null,null,"Fluency"]
["Reviewer Name","Materials reviewed",null,"1.1 Rating","1.1 Support","1.2 Rating","1.2 Support","1.3 Rating","1.3 Support","1.4 Rating","1.4 Support","1.5 Rating","1.5 Support","1.6 Rating","1.6 Support","1.7 Rating","1.7 Support","1.8 Rating","1.8 Support","1.9 Rating","1.9 Support","1.10 Rating","1.10 Support","1.11 Rating","1.11 Support","1.12 Rating","1.12 Support","1.13 Rating","1.13 Support","1.14 Rating","1.14 Support","1.15 Rating","1.15 Support","Average rating per reviewer","Average percent criteria met (>2) per reviewer",null,"2.1 Rating","2.1 Support","2.2 Rating","2.2 Support","2.3 Rating","2.3 Support","2.4 Rating","2.4 Support","2.5 Rating","2.5 Support","2.6 Rating","2.6 Support","2.7 Rating","2.7 Support","2.8 Rating","2.8 Support","2.9 Rating","2.9 Support","2.10 Rating","2.10 Support","Average rating per reviewer","Average percent criteria met (>2) per reviewer",null,"3.1 Rating","3.1 Support","3.2 Rating","3.2 Support","3.3 Rating","3.3 Support","Average rating per reviewer","Average percent criteria met (>2) per reviewer",null,"4.1 Rating","4.1 Support","Average rating per reviewer","Average percent criteria met (>2) per reviewer",null,"5.1 Rating","5.1 Support","5.2 Rating","5.2 Support","5.3 Rating","5.3 Support","5.4 Rating","5.4 Support","5.5 Rating","5.5 Support","5.6 Rating","5.6 Support","Average rating per reviewer","Average percent criteria met (>2) per reviewer",null,"1 Rating","1 Support","2 Rating","2 Support","3 Rating","3 Support","4 Rating","4 Support","5 Rating","5 Support"]
[]
[]
[null,null,null,null,null,null,null,null,null,null,null,null,null,null,null,null,null,null,null,null,null,null,null,null,null,null,null,null,null,null,null,null,null,{"$f":"AVERAGE(D18,F18,H18,J18,L18,N18,P18,R18,T18,V18,X18,Z18,AB18,AD18,AF18)","v":{"$error":"#DIV/0!"}},{"$f":"(COUNTIF(D18,\">2\")+COUNTIF(F18,\">2\")+COUNTIF(H18,\">2\")+COUNTIF(J18,\">2\")+COUNTIF(L18,\">2\")+COUNTIF(N18,\">2\")+COUNTIF(P18,\">2\")+COUNTIF(R18,\">2\")+COUNTIF(T18,\">2\")+COUNTIF(V18,\">2\")+COUNTIF(X18,\">2\")+COUNTIF(Z18,\">2\")+COUNTIF(AB18,\">2\")+COUNTIF(AD18,\">2\")+COUNTIF(AF18,\">2\"))/COUNTA(D18,F18,H18,J18,L18,N18,P18,R18,T18,V18,X18,Z18,AB18,AD18,AF18)","v":{"$error":"#DIV/0!"}},null,null,null,null,null,null,null,null,null,null,null,null,null,null,null,null,null,null,null,null,null,{"$f":"AVERAGE(AK18,AM18,AO18,AQ18,AS18,AU18,AW18,AY18,BA18,BC18)","v":{"$error":"#DIV/0!"}},{"$f":"(COUNTIF(AK18,\">2\")+COUNTIF(AM18,\">2\")+COUNTIF(AO18,\">2\")+COUNTIF(AQ18,\">2\")+COUNTIF(AS18,\">2\")+COUNTIF(AU18,\">2\")+COUNTIF(AW18,\">2\")+COUNTIF(AY18,\">2\")+COUNTIF(BA18,\">2\")+COUNTIF(BC18,\">2\"))/COUNTA(AK18,AM18,AO18,AQ18,AS18,AU18,AW18,AY18,BA18,BC18)","v":{"$error":"#DIV/0!"}},null,null,null,null,null,null,null,{"$f":"AVERAGE(BH18,BJ18,BL18)","v":{"$error":"#DIV/0!"}},{"$f":"(COUNTIF(BH18,\">2\")+COUNTIF(BJ18,\">2\")+COUNTIF(BL18,\">2\"))/COUNTA(BH18,BJ18,BL18)","v":{"$error":"#DIV/0!"}},null,null,null,{"$f":"AVERAGE(BQ18)","v":{"$error":"#DIV/0!"}},{"$f":"(COUNTIF(BQ18,\">2\"))/COUNTA(BQ18)","v":{"$error":"#DIV/0!"}},null,null,null,null,null,null,null,null,null,null,null,null,null,{"$f":"AVERAGE(BV18,BX18,BZ18,CB18,CD18,CF18)","v":{"$error":"#DIV/0!"}},{"$f":"(COUNTIF(BV18,\">2\")+COUNTIF(BX18,\">2\")+COUNTIF(BZ18,\">2\")+COUNTIF(CB18,\">2\")+COUNTIF(CD18,\">2\")+COUNTIF(CF18,\">2\"))/COUNTA(BV18,BX18,BZ18,CB18,CD18,CF18)","v":{"$error":"#DIV/0!"}}]
[null,null,null,null,null,null,null,null,null,null,null,null,null,null,null,null,null,null,null,null,null,null,null,null,null,null,null,null,null,null,null,null,null,{"$error":"#DIV/0!"},{"$error":"#DIV/0!"},null,null,null,null,null,null,null,null,null,null,null,null,null,null,null,null,null,null,null,null,null,{"$error":"#DIV/0!"},{"$error":"#DIV/0!"},null,null,null,null,null,null,null,{"$error":"#DIV/0!"},{"$error":"#DIV/0!"},null,null,null,{"$error":"#DIV/0!"},{"$error":"#DIV/0!"},null,null,null,null,null,null,null,null,null,null,null,null,null,{"$error":"#DIV/0!"},{"$error":"#DIV/0!"}]
[null,null,null,null,null,null,null,null,null,null,null,null,null,null,null,null,null,null,null,null,null,null,null,null,null,null,null,null,null,null,null,null,null,{"$error":"#DIV/0!"},{"$error":"#DIV/0!"},null,null,null,null,null,null,null,null,null,null,null,null,null,null,null,null,null,null,null,null,null,{"$error":"#DIV/0!"},{"$error":"#DIV/0!"},null,null,null,null,null,null,null,{"$error":"#DIV/0!"},{"$error":"#DIV/0!"},null,null,null,{"$error":"#DIV/0!"},{"$error":"#DIV/0!"},null,null,null,null,null,null,null,null,null,null,null,null,null,{"$error":"#DIV/0!"},{"$error":"#DIV/0!"}]
[null,null,null,null,null,null,null,null,null,null,null,null,null,null,null,null,null,null,null,null,null,null,null,null,null,null,null,null,null,null,null,null,null,{"$error":"#DIV/0!"},{"$error":"#DIV/0!"},null,null,null,null,null,null,null,null,null,null,null,null,null,null,null,null,null,null,null,null,null,{"$error":"#DIV/0!"},{"$error":"#DIV/0!"},null,null,null,null,null,null,null,{"$error":"#DIV/0!"},{"$error":"#DIV/0!"},null,null,null,{"$error":"#DIV/0!"},{"$error":"#DIV/0!"},null,null,null,null,null,null,null,null,null,null,null,null,null,{"$error":"#DIV/0!"},{"$error":"#DIV/0!"}]
[null,null,null,null,null,null,null,null,null,null,null,null,null,null,null,null,null,null,null,null,null,null,null,null,null,null,null,null,null,null,null,null,null,{"$error":"#DIV/0!"},{"$error":"#DIV/0!"},null,null,null,null,null,null,null,null,null,null,null,null,null,null,null,null,null,null,null,null,null,{"$error":"#DIV/0!"},{"$error":"#DIV/0!"},null,null,null,null,null,null,null,{"$error":"#DIV/0!"},{"$error":"#DIV/0!"},null,null,null,{"$error":"#DIV/0!"},{"$error":"#DIV/0!"},null,null,null,null,null,null,null,null,null,null,null,null,null,{"$error":"#DIV/0!"},{"$error":"#DIV/0!"}]
[null,null,null,null,null,null,null,null,null,null,null,null,null,null,null,null,null,null,null,null,null,null,null,null,null,null,null,null,null,null,null,null,null,{"$error":"#DIV/0!"},{"$error":"#DIV/0!"},null,null,null,null,null,null,null,null,null,null,null,null,null,null,null,null,null,null,null,null,null,{"$error":"#DIV/0!"},{"$error":"#DIV/0!"},null,null,null,null,null,null,null,{"$error":"#DIV/0!"},{"$error":"#DIV/0!"},null,null,null,{"$error":"#DIV/0!"},{"$error":"#DIV/0!"},null,null,null,null,null,null,null,null,null,null,null,null,null,{"$error":"#DIV/0!"},{"$error":"#DIV/0!"}]
[null,null,null,null,null,null,null,null,null,null,null,null,null,null,null,null,null,null,null,null,null,null,null,null,null,null,null,null,null,null,null,null,null,{"$error":"#DIV/0!"},{"$error":"#DIV/0!"},null,null,null,null,null,null,null,null,null,null,null,null,null,null,null,null,null,null,null,null,null,{"$error":"#DIV/0!"},{"$error":"#DIV/0!"},null,null,null,null,null,null,null,{"$error":"#DIV/0!"},{"$error":"#DIV/0!"},null,null,null,{"$error":"#DIV/0!"},{"$error":"#DIV/0!"},null,null,null,null,null,null,null,null,null,null,null,null,null,{"$error":"#DIV/0!"},{"$error":"#DIV/0!"}]
[null,null,null,null,null,null,null,null,null,null,null,null,null,null,null,null,null,null,null,null,null,null,null,null,null,null,null,null,null,null,null,null,null,{"$error":"#DIV/0!"},{"$error":"#DIV/0!"},null,null,null,null,null,null,null,null,null,null,null,null,null,null,null,null,null,null,null,null,null,{"$error":"#DIV/0!"},{"$error":"#DIV/0!"},null,null,null,null,null,null,null,{"$error":"#DIV/0!"},{"$error":"#DIV/0!"},null,null,null,{"$error":"#DIV/0!"},{"$error":"#DIV/0!"},null,null,null,null,null,null,null,null,null,null,null,null,null,{"$error":"#DIV/0!"},{"$error":"#DIV/0!"}]
[null,null,null,null,null,null,null,null,null,null,null,null,null,null,null,null,null,null,null,null,null,null,null,null,null,null,null,null,null,null,null,null,null,{"$error":"#DIV/0!"},{"$error":"#DIV/0!"},null,null,null,null,null,null,null,null,null,null,null,null,null,null,null,null,null,null,null,null,null,{"$error":"#DIV/0!"},{"$error":"#DIV/0!"},null,null,null,null,null,null,null,{"$error":"#DIV/0!"},{"$error":"#DIV/0!"},null,null,null,{"$error":"#DIV/0!"},{"$error":"#DIV/0!"},null,null,null,null,null,null,null,null,null,null,null,null,null,{"$error":"#DIV/0!"},{"$error":"#DIV/0!"}]
[]
["Do the reviewers agree on the rating? (Yes or No)"]
["Dichotomous scoring",null,null,{"$f":"IF(D28=\"No\",0,IF(D28=\"Yes\",1,\"\"))","v":""},null,{"$f":"IF(F28=\"No\",0,IF(F28=\"Yes\",1,\"\"))","v":""},null,{"$f":"IF(H28=\"No\",0,IF(H28=\"Yes\",1,\"\"))","v":""},null,{"$f":"IF(J28=\"No\",0,IF(J28=\"Yes\",1,\"\"))","v":""},null,{"$f":"IF(L28=\"No\",0,IF(L28=\"Yes\",1,\"\"))","v":""},null,{"$f":"IF(N28=\"No\",0,IF(N28=\"Yes\",1,\"\"))","v":""},null,{"$f":"IF(P28=\"No\",0,IF(P28=\"Yes\",1,\"\"))","v":""},null,{"$f":"IF(R28=\"No\",0,IF(R28=\"Yes\",1,\"\"))","v":""},null,{"$f":"IF(T28=\"No\",0,IF(T28=\"Yes\",1,\"\"))","v":""},null,{"$f":"IF(V28=\"No\",0,IF(V28=\"Yes\",1,\"\"))","v":""},null,{"$f":"IF(X28=\"No\",0,IF(X28=\"Yes\",1,\"\"))","v":""},null,{"$f":"IF(Z28=\"No\",0,IF(Z28=\"Yes\",1,\"\"))","v":""},null,{"$f":"IF(AB28=\"No\",0,IF(AB28=\"Yes\",1,\"\"))","v":""},null,{"$f":"IF(AD28=\"No\",0,IF(AD28=\"Yes\",1,\"\"))","v":""},null,{"$f":"IF(AF28=\"No\",0,IF(AF28=\"Yes\",1,\"\"))","v":""},null,{"$f":"AVERAGEIF(AH16:AH26,\">=0\")","v":{"$error":"#DIV/0!"}},{"$f":"AVERAGEIF(AI16:AI26,\">=0\")","v":{"$error":"#DIV/0!"}},null,{"$f":"IF(AK28=\"No\",0,IF(AK28=\"Yes\",1,\"\"))","v":""},null,{"$f":"IF(AM28=\"No\",0,IF(AM28=\"Yes\",1,\"\"))","v":""},null,"",null,"",null,"",null,"",null,"",null,"",null,"",null,"",null,{"$f":"AVERAGEIF(BE16:BE26,\">=0\")","v":{"$error":"#DIV/0!"}},{"$f":"AVERAGEIF(BF16:BF26,\">=0\")","v":{"$error":"#DIV/0!"}},null,{"$f":"IF(BH28=\"No\",0,IF(BH28=\"Yes\",1,\"\"))","v":""},null,{"$f":"IF(BJ28=\"No\",0,IF(BJ28=\"Yes\",1,\"\"))","v":""},null,{"$f":"IF(BL28=\"No\",0,IF(BL28=\"Yes\",1,\"\"))","v":""},null,{"$f":"AVERAGEIF(BN16:BN26,\">=0\")","v":{"$error":"#DIV/0!"}},{"$f":"AVERAGEIF(BO16:BO26,\">=0\")","v":{"$error":"#DIV/0!"}},null,{"$f":"IF(BQ28=\"No\",0,IF(BQ28=\"Yes\",1,\"\"))","v":""},null,{"$f":"AVERAGEIF(BS16:BS26,\">=0\")","v":{"$error":"#DIV/0!"}},{"$f":"AVERAGEIF(BT16:BT26,\">=0\")","v":{"$error":"#DIV/0!"}},null,{"$f":"IF(BV28=\"No\",0,IF(BV28=\"Yes\",1,\"\"))","v":""},null,{"$f":"IF(BX28=\"No\",0,IF(BX28=\"Yes\",1,\"\"))","v":""},null,{"$f":"IF(BZ28=\"No\",0,IF(BZ28=\"Yes\",1,\"\"))","v":""},null,{"$f":"IF(CB28=\"No\",0,IF(CB28=\"Yes\",1,\"\"))","v":""},null,{"$f":"IF(CD28=\"No\",0,IF(CD28=\"Yes\",1,\"\"))","v":""},null,{"$f":"IF(CF28=\"No\",0,IF(CF28=\"Yes\",1,\"\"))","v":""},null,{"$f":"AVERAGEIF(CH16:CH26,\">=0\")","v":{"$error":"#DIV/0!"}},{"$f":"AVERAGEIF(CI16:CI26,\">=0\")","v":{"$error":"#DIV/0!"}},null,{"$f":"IF(CK28=\"No\",0,IF(CK28=\"Yes\",1,\"\"))","v":""},null,{"$f":"IF(CM28=\"No\",0,IF(CM28=\"Yes\",1,\"\"))","v":""},null,{"$f":"IF(CO28=\"No\",0,IF(CO28=\"Yes\",1,\"\"))","v":""},null,{"$f":"IF(CQ28=\"No\",0,IF(CQ28=\"Yes\",1,\"\"))","v":""},null,{"$f":"IF(CS28=\"No\",0,IF(CS28=\"Yes\",1,\"\"))","v":""}]
[]
[]
[]
["Summary scores"]
["Content area subsection","Percent agreement among reviewers",null,"Average score among reviewers",null,"Average percent of \ncriteria met",null,"Interpreting these scores"]
["1. Foundational reading skills",{"$f":"AVERAGE(D29:AG29)","v":{"$error":"#DIV/0!"}},{"$f":"AVERAGE(#REF!)","v":{"$error":"#REF!"}},{"$f":"AH29","v":{"$error":"#DIV/0!"}},null,{"$f":"AI29","v":{"$error":"#DIV/0!"}},null,{"$f":"IF(B35>=0.8,(IF(D35>=3,(IF(F35>=0.8,'Interpreting summary scores'!$A$3,'Interpreting summary scores'!$A$6)),(IF(F35>=0.8,'Interpreting summary scores'!$A$5,'Interpreting summary scores'!$A$4)))),(IF(D35>=3,(IF(F35>=0.8,'Interpreting summary scores'!$A$8,'Interpreting summary scores'!$A$9)),(IF(F35>=0.8,'Interpreting summary scores'!$A$10,'Interpreting summary scores'!$A$7)))))","v":{"$error":"#DIV/0!"}}]
["2. Fluency",{"$f":"AVERAGE(AK29:BC29)","v":{"$error":"#DIV/0!"}},null,{"$f":"BE29","v":{"$error":"#DIV/0!"}},null,{"$f":"BF29","v":{"$error":"#DIV/0!"}},null,{"$f":"IF(B36>=0.8,(IF(D36>=3,(IF(F36>=0.8,'Interpreting summary scores'!$A$3,'Interpreting summary scores'!$A$6)),(IF(F36>=0.8,'Interpreting summary scores'!$A$5,'Interpreting summary scores'!$A$4)))),(IF(D36>=3,(IF(F36>=0.8,'Interpreting summary scores'!$A$8,'Interpreting summary scores'!$A$9)),(IF(F36>=0.8,'Interpreting summary scores'!$A$10,'Interpreting summary scores'!$A$7)))))","v":{"$error":"#DIV/0!"}}]
["3. Writing development and skills",{"$f":"AVERAGE(BH29:BL29)","v":{"$error":"#DIV/0!"}},null,{"$f":"BN29","v":{"$error":"#DIV/0!"}},null,{"$f":"BO29","v":{"$error":"#DIV/0!"}},null,{"$f":"IF(B37>=0.8,(IF(D37>=3,(IF(F37>=0.8,'Interpreting summary scores'!$A$3,'Interpreting summary scores'!$A$6)),(IF(F37>=0.8,'Interpreting summary scores'!$A$5,'Interpreting summary scores'!$A$4)))),(IF(D37>=3,(IF(F37>=0.8,'Interpreting summary scores'!$A$8,'Interpreting summary scores'!$A$9)),(IF(F37>=0.8,'Interpreting summary scores'!$A$10,'Interpreting summary scores'!$A$7)))))","v":{"$error":"#DIV/0!"}}]
["4. Speaking and listening development",{"$f":"AVERAGE(BQ29)","v":{"$error":"#DIV/0!"}},null,{"$f":"BS29","v":{"$error":"#DIV/0!"}},null,{"$f":"BT29","v":{"$error":"#DIV/0!"}},null,{"$f":"IF(B38>=0.8,(IF(D38>=3,(IF(F38>=0.8,'Interpreting summary scores'!$A$3,'Interpreting summary scores'!$A$6)),(IF(F38>=0.8,'Interpreting summary scores'!$A$5,'Interpreting summary scores'!$A$4)))),(IF(D38>=3,(IF(F38>=0.8,'Interpreting summary scores'!$A$8,'Interpreting summary scores'!$A$9)),(IF(F38>=0.8,'Interpreting summary scores'!$A$10,'Interpreting summary scores'!$A$7)))))","v":{"$error":"#DIV/0!"}}]
["5. Language development and skills",{"$f":"AVERAGE(BV29:CF29)","v":{"$error":"#DIV/0!"}},null,{"$f":"CH29","v":{"$error":"#DIV/0!"}},null,{"$f":"CI29","v":{"$error":"#DIV/0!"}},null,{"$f":"IF(B39>=0.8,(IF(D39>=3,(IF(F39>=0.8,'Interpreting summary scores'!$A$3,'Interpreting summary scores'!$A$6)),(IF(F39>=0.8,'Interpreting summary scores'!$A$5,'Interpreting summary scores'!$A$4)))),(IF(D39>=3,(IF(F39>=0.8,'Interpreting summary scores'!$A$8,'Interpreting summary scores'!$A$9)),(IF(F39>=0.8,'Interpreting summary scores'!$A$10,'Interpreting summary scores'!$A$7)))))","v":{"$error":"#DIV/0!"}}]
[]
[]
[]
[]
[]
[]
[]
[]
[]
[]
[]
[]
[]
[]
[]
[]
[]
[]
[]
[]
[{"$f":"CONCATENATE(\"M1-\",B5,\" \",B6)","v":"M1- -Select-"}]

{"sheet":"M2- -Select-","index":1,"n_rows":60,"n_cols":98,"rows_kept":60,"cut":false,"hidden":false,"merged":[[0,0,0,1],[12,3,12,32],[12,36,12,57],[12,59,12,66],[12,68,12,69],[12,73,12,86],[12,88,12,97],[13,5,13,6],[13,7,13,8],[13,9,13,12],[13,13,13,30],[13,31,13,32],[13,36,13,57],[13,59,13,66],[13,68,13,69],[12,70,12,71],[13,70,13,71],[13,73,13,86],[13,88,13,97],[27,0,27,1],[27,3,27,4],[27,5,27,6],[27,7,27,8],[27,9,27,10],[27,11,27,12],[27,13,27,14],[27,40,27,41],[27,15,27,16],[27,17,27,18],[27,19,27,20],[27,21,27,22],[27,23,27,24],[27,25,27,26],[27,27,27,28],[27,29,27,30],[27,31,27,32],[27,36,27,37],[27,38,27,39],[27,68,27,69],[27,73,27,74],[27,42,27,43],[27,44,27,45],[27,46,27,47],[27,48,27,49],[27,50,27,51],[27,52,27,53],[27,90,27,91],[27,92,27,93],[27,94,27,95],[27,96,27,97],[32,1,32,6],[32,7,32,10],[27,75,27,76],[27,77,27,78],[27,79,27,80],[27,81,27,82],[27,83,27,84],[27,88,27,89],[27,54,27,55],[27,59,27,60],[27,61,27,62],[27,63,27,64],[33,1,33,2],[33,3,33,4],[33,5,33,6],[33,7,33,10],[34,1,34,2],[34,3,34,4],[34,5,34,6],[34,7,34,10],[35,1,35,2],[35,3,35,4],[35,5,35,6],[35,7,35,10],[36,1,36,2],[36,3,36,4],[36,5,36,6],[36,7,36,10],[37,7,37,10],[38,1,38,2],[38,3,38,4],[38,5,38,6],[38,7,38,10],[39,1,39,2],[39,3,39,4],[39,5,39,6],[37,1,37,2],[37,3,37,4],[37,5,37,6]]}
["K-2 Facilitator Spreadsheet"]
[]
["General information"]
["Date reviews compiled:"]
["Name of materials:"]
["Intended grade level(s):",{"$f":"IF(J1=\"\",\"-Select-\")","v":"-Select-"}]
["Materials type:",{"$f":"IF(J1=\"\",\"-Select-\")","v":"-Select-"}]
[]
[]
[]
[]
[]
["Compiling reviewer ratings",null,null,"Foundational reading skills",null,null,null,null,null,null,null,null,null,null,null,null,null,null,null,null,null,null,null,null,null,null,null,null,null,null,null,null,null,null,null,null,"Reading comprehension for literary and informational texts",null,null,null,null,null,null,null,null,null,null,null,null,null,null,null,null,null,null,null,null,null,null,"Writing development and skills",null,null,null,null,null,null,null,null,"Speaking and listening development and skills",null,null,null,null,"Language development and skills",null,null,null,null,null,null,null,null,null,null,null,null,null,null,"Overall Rating"]
[null,null,null,null,null,"Print concepts",null,"Phonological awareness",null,"Phonemic awareness",null,null,null,"Phonics",null,null,null,null,null,null,null,null,null,null,null,null,null,null,null,null,null,"Fluency"]
["Reviewer Name","Materials reviewed",null,"1.1 Rating","1.1 Support","1.2 Rating","1.2 Support","1.3 Rating","1.3 Support","1.4 Rating","1.4 Support","1.5 Rating","1.5 Support","1.6 Rating","1.6 Support","1.7 Rating","1.7 Support","1.8 Rating","1.8 Support","1.9 Rating","1.9 Support","1.10 Rating","1.10 Support","1.11 Rating","1.11 Support","1.12 Rating","1.12 Support","1.13 Rating","1.13 Support","1.14 Rating","1.14 Support","1.15 Rating","1.15 Support","Average rating per reviewer","Average percent criteria met (>2) per reviewer",null,"2.1 Rating","2.1 Support","2.2 Rating","2.2 Support","2.3 Rating","2.3 Support","2.4 Rating","2.4 Support","2.5 Rating","2.5 Support","2.6 Rating","2.6 Support","2.7 Rating","2.7 Support","2.8 Rating","2.8 Support","2.9 Rating","2.9 Support","2.10 Rating","2.10 Support","Average rating per reviewer","Average percent criteria met (>2) per reviewer",null,"3.1 Rating","3.1 Support","3.2 Rating","3.2 Support","3.3 Rating","3.3 Support","Average rating per reviewer","Average percent criteria met (>2) per reviewer",null,"4.1 Rating","4.1 Support","Average rating per reviewer","Average percent criteria met (>2) per reviewer",null,"5.1 Rating","5.1 Support","5.2 Rating","5.2 Support","5.3 Rating","5.3 Support","5.4 Rating","5.4 Support","5.5 Rating","5.5 Support","5.6 Rating","5.6 Support","Average rating per reviewer","Average percent criteria met (>2) per reviewer",null,"1 Rating","1 Support","2 Rating","2 Support","3 Rating","3 Support","4 Rating","4 Support","5 Rating","5 Support"]
[null,null,null,null,null,null,null,null,null,null,null,null,null,null,null,null,null,null,null,null,null,null,null,null,null,null,null,null,null,null,null,null,null,{"$f":"AVERAGE(D16,F16,H16,J16,L16,N16,P16,R16,T16,V16,X16,Z16,AB16,AD16,AF16)","v":{"$error":"#DIV/0!"}},{"$f":"(COUNTIF(D16,\">2\")+COUNTIF(F16,\">2\")+COUNTIF(H16,\">2\")+COUNTIF(J16,\">2\")+COUNTIF(L16,\">2\")+COUNTIF(N16,\">2\")+COUNTIF(P16,\">2\")+COUNTIF(R16,\">2\")+COUNTIF(T16,\">2\")+COUNTIF(V16,\">2\")+COUNTIF(X16,\">2\")+COUNTIF(Z16,\">2\")+COUNTIF(AB16,\">2\")+COUNTIF(AD16,\">2\")+COUNTIF(AF16,\">2\"))/COUNTA(D16,F16,H16,J16,L16,N16,P16,R16,T16,V16,X16,Z16,AB16,AD16,AF16)","v":{"$error":"#DIV/0!"}},null,null,null,null,null,null,null,null,null,null,null,null,null,null,null,null,null,null,null,null,null,{"$f":"AVERAGE(AK16,AM16,AO16,AQ16,AS16,AU16,AW16,AY16,BA16,BC16)","v":{"$error":"#DIV/0!"}},{"$f":"(COUNTIF(AK16,\">2\")+COUNTIF(AM16,\">2\")+COUNTIF(AO16,\">2\")+COUNTIF(AQ16,\">2\")+COUNTIF(AS16,\">2\")+COUNTIF(AU16,\">2\")+COUNTIF(AW16,\">2\")+COUNTIF(AY16,\">2\")+COUNTIF(BA16,\">2\")+COUNTIF(BC16,\">2\"))/COUNTA(AK16,AM16,AO16,AQ16,AS16,AU16,AW16,AY16,BA16,BC16)","v":{"$error":"#DIV/0!"}},null,null,null,null,null,null,null,{"$f":"AVERAGE(BH16,BJ16,BL16)","v":{"$error":"#DIV/0!"}},{"$f":"(COUNTIF(BH16,\">2\")+COUNTIF(BJ16,\">2\")+COUNTIF(BL16,\">2\"))/COUNTA(BH16,BJ16,BL16)","v":{"$error":"#DIV/0!"}},null,null,null,{"$f":"AVERAGE(BQ16)","v":{"$error":"#DIV/0!"}},{"$f":"(COUNTIF(BQ16,\">2\"))/COUNTA(BQ16)","v":{"$error":"#DIV/0!"}},null,null,null,null,null,null,null,null,null,null,null,null,null,{"$f":"AVERAGE(BV16,BX16,BZ16,CB16,CD16,CF16)","v":{"$error":"#DIV/0!"}},{"$f":"(COUNTIF(BV16,\">2\")+COUNTIF(BX16,\">2\")+COUNTIF(BZ16,\">2\")+COUNTIF(CB16,\">2\")+COUNTIF(CD16,\">2\")+COUNTIF(CF16,\">2\"))/COUNTA(BV16,BX16,BZ16,CB16,CD16,CF16)","v":{"$error":"#DIV/0!"}}]
[null,null,null,null,null,null,null,null,null,null,null,null,null,null,null,null,null,null,null,null,null,null,null,null,null,null,null,null,null,null,null,null,null,{"$f":"AVERAGE(D17,F17,H17,J17,L17,N17,P17,R17,T17,V17,X17,Z17,AB17,AD17,AF17)","v":{"$error":"#DIV/0!"}},{"$error":"#DIV/0!"},null,null,null,null,null,null,null,null,null,null,null,null,null,null,null,null,null,null,null,null,null,{"$f":"AVERAGE(AK17,AM17,AO17,AQ17,AS17,AU17,AW17,AY17,BA17,BC17)","v":{"$error":"#DIV/0!"}},{"$f":"(COUNTIF(AK17,\">2\")+COUNTIF(AM17,\">2\")+COUNTIF(AO17,\">2\")+COUNTIF(AQ17,\">2\")+COUNTIF(AS17,\">2\")+COUNTIF(AU17,\">2\")+COUNTIF(AW17,\">2\")+COUNTIF(AY17,\">2\")+COUNTIF(BA17,\">2\")+COUNTIF(BC17,\">2\"))/COUNTA(AK17,AM17,AO17,AQ17,AS17,AU17,AW17,AY17,BA17,BC17)","v":{"$error":"#DIV/0!"}},null,null,null,null,null,null,null,{"$f":"AVERAGE(BH17,BJ17,BL17)","v":{"$error":"#DIV/0!"}},{"$f":"(COUNTIF(BH17,\">2\")+COUNTIF(BJ17,\">2\")+COUNTIF(BL17,\">2\"))/COUNTA(BH17,BJ17,BL17)","v":{"$error":"#DIV/0!"}},null,null,null,{"$f":"AVERAGE(BQ17)","v":{"$error":"#DIV/0!"}},{"$f":"(COUNTIF(BQ17,\">2\"))/COUNTA(BQ17)","v":{"$error":"#DIV/0!"}},null,null,null,null,null,null,null,null,null,null,null,null,null,{"$f":"AVERAGE(BV17,BX17,BZ17,CB17,CD17,CF17)","v":{"$error":"#DIV/0!"}},{"$f":"(COUNTIF(BV17,\">2\")+COUNTIF(BX17,\">2\")+COUNTIF(BZ17,\">2\")+COUNTIF(CB17,\">2\")+COUNTIF(CD17,\">2\")+COUNTIF(CF17,\">2\"))/COUNTA(BV17,BX17,BZ17,CB17,CD17,CF17)","v":{"$error":"#DIV/0!"}}]
[null,null,null,null,null,null,null,null,null,null,null,null,null,null,null,null,null,null,null,null,null,null,null,null,null,null,null,null,null,null,null,null,null,{"$error":"#DIV/0!"},{"$error":"#DIV/0!"},null,null,null,null,null,null,null,null,null,null,null,null,null,null,null,null,null,null,null,null,null,{"$error":"#DIV/0!"},{"$error":"#DIV/0!"},null,null,null,null,null,null,null,{"$error":"#DIV/0!"},{"$error":"#DIV/0!"},null,null,null,{"$error":"#DIV/0!"},{"$error":"#DIV/0!"},null,null,null,null,null,null,null,null,null,null,null,null,null,{"$error":"#DIV/0!"},{"$error":"#DIV/0!"}]
[null,null,null,null,null,null,null,null,null,null,null,null,null,null,null,null,null,null,null,null,null,null,null,null,null,null,null,null,null,null,null,null,null,{"$error":"#DIV/0!"},{"$error":"#DIV/0!"},null,null,null,null,null,null,null,null,null,null,null,null,null,null,null,null,null,null,null,null,null,{"$error":"#DIV/0!"},{"$error":"#DIV/0!"},null,null,null,null,null,null,null,{"$error":"#DIV/0!"},{"$error":"#DIV/0!"},null,null,null,{"$error":"#DIV/0!"},{"$error":"#DIV/0!"},null,null,null,null,null,null,null,null,null,null,null,null,null,{"$error":"#DIV/0!"},{"$error":"#DIV/0!"}]
[null,null,null,null,null,null,null,null,null,null,null,null,null,null,null,null,null,null,null,null,null,null,null,null,null,null,null,null,null,null,null,null,null,{"$error":"#DIV/0!"},{"$error":"#DIV/0!"},null,null,null,null,null,null,null,null,null,null,null,null,null,null,null,null,null,null,null,null,null,{"$error":"#DIV/0!"},{"$error":"#DIV/0!"},null,null,null,null,null,null,null,{"$error":"#DIV/0!"},{"$error":"#DIV/0!"},null,null,null,{"$error":"#DIV/0!"},{"$error":"#DIV/0!"},null,null,null,null,null,null,null,null,null,null,null,null,null,{"$error":"#DIV/0!"},{"$error":"#DIV/0!"}]
[null,null,null,null,null,null,null,null,null,null,null,null,null,null,null,null,null,null,null,null,null,null,null,null,null,null,null,null,null,null,null,null,null,{"$error":"#DIV/0!"},{"$error":"#DIV/0!"},null,null,null,null,null,null,null,null,null,null,null,null,null,null,null,null,null,null,null,null,null,{"$error":"#DIV/0!"},{"$error":"#DIV/0!"},null,null,null,null,null,null,null,{"$error":"#DIV/0!"},{"$error":"#DIV/0!"},null,null,null,{"$error":"#DIV/0!"},{"$error":"#DIV/0!"},null,null,null,null,null,null,null,null,null,null,null,null,null,{"$error":"#DIV/0!"},{"$error":"#DIV/0!"}]
[null,null,null,null,null,null,null,null,null,null,null,null,null,null,null,null,null,null,null,null,null,null,null,null,null,null,null,null,null,null,null,null,null,{"$error":"#DIV/0!"},{"$error":"#DIV/0!"},null,null,null,null,null,null,null,null,null,null,null,null,null,null,null,null,null,null,null,null,null,{"$error":"#DIV/0!"},{"$error":"#DIV/0!"},null,null,null,null,null,null,null,{"$error":"#DIV/0!"},{"$error":"#DIV/0!"},null,null,null,{"$error":"#DIV/0!"},{"$error":"#DIV/0!"},null,null,null,null,null,null,null,null,null,null,null,null,null,{"$error":"#DIV/0!"},{"$error":"#DIV/0!"}]
[null,null,null,null,null,null,null,null,null,null,null,null,null,null,null,null,null,null,null,null,null,null,null,null,null,null,null,null,null,null,null,null,null,{"$error":"#DIV/0!"},{"$error":"#DIV/0!"},null,null,null,null,null,null,null,null,null,null,null,null,null,null,null,null,null,null,null,null,null,{"$error":"#DIV/0!"},{"$error":"#DIV/0!"},null,null,null,null,null,null,null,{"$error":"#DIV/0!"},{"$error":"#DIV/0!"},null,null,null,{"$error":"#DIV/0!"},{"$error":"#DIV/0!"},null,null,null,null,null,null,null,null,null,null,null,null,null,{"$error":"#DIV/0!"},{"$error":"#DIV/0!"}]
[null,null,null,null,null,null,null,null,null,null,null,null,null,null,null,null,null,null,null,null,null,null,null,null,null,null,null,null,null,null,null,null,null,{"$error":"#DIV/0!"},{"$error":"#DIV/0!"},null,null,null,null,null,null,null,null,null,null,null,null,null,null,null,null,null,null,null,null,null,{"$error":"#DIV/0!"},{"$error":"#DIV/0!"},null,null,null,null,null,null,null,{"$error":"#DIV/0!"},{"$error":"#DIV/0!"},null,null,null,{"$error":"#DIV/0!"},{"$error":"#DIV/0!"},null,null,null,null,null,null,null,null,null,null,null,null,null,{"$error":"#DIV/0!"},{"$error":"#DIV/0!"}]
[null,null,null,null,null,null,null,null,null,null,null,null,null,null,null,null,null,null,null,null,null,null,null,null,null,null,null,null,null,null,null,null,null,{"$error":"#DIV/0!"},{"$error":"#DIV/0!"},null,null,null,null,null,null,null,null,null,null,null,null,null,null,null,null,null,null,null,null,null,{"$error":"#DIV/0!"},{"$error":"#DIV/0!"},null,null,null,null,null,null,null,{"$error":"#DIV/0!"},{"$error":"#DIV/0!"},null,null,null,{"$error":"#DIV/0!"},{"$error":"#DIV/0!"},null,null,null,null,null,null,null,null,null,null,null,null,null,{"$error":"#DIV/0!"},{"$error":"#DIV/0!"}]
[null,null,null,null,null,null,null,null,null,null,null,null,null,null,null,null,null,null,null,null,null,null,null,null,null,null,null,null,null,null,null,null,null,{"$error":"#DIV/0!"},{"$error":"#DIV/0!"},null,null,null,null,null,null,null,null,null,null,null,null,null,null,null,null,null,null,null,null,null,{"$error":"#DIV/0!"},{"$error":"#DIV/0!"},null,null,null,null,null,null,null,{"$error":"#DIV/0!"},{"$error":"#DIV/0!"},null,null,null,{"$error":"#DIV/0!"},{"$error":"#DIV/0!"},null,null,null,null,null,null,null,null,null,null,null,null,null,{"$error":"#DIV/0!"},{"$error":"#DIV/0!"}]
[]
["Do the reviewers agree on the rating? (Yes or No)"]
["Dichotomous scoring",null,null,{"$f":"IF(D28=\"No\",0,IF(D28=\"Yes\",1,\"\"))","v":""},null,{"$f":"IF(F28=\"No\",0,IF(F28=\"Yes\",1,\"\"))","v":""},null,{"$f":"IF(H28=\"No\",0,IF(H28=\"Yes\",1,\"\"))","v":""},null,{"$f":"IF(J28=\"No\",0,IF(J28=\"Yes\",1,\"\"))","v":""},null,{"$f":"IF(L28=\"No\",0,IF(L28=\"Yes\",1,\"\"))","v":""},null,{"$f":"IF(N28=\"No\",0,IF(N28=\"Yes\",1,\"\"))","v":""},null,{"$f":"IF(P28=\"No\",0,IF(P28=\"Yes\",1,\"\"))","v":""},null,{"$f":"IF(R28=\"No\",0,IF(R28=\"Yes\",1,\"\"))","v":""},null,{"$f":"IF(T28=\"No\",0,IF(T28=\"Yes\",1,\"\"))","v":""},null,{"$f":"IF(V28=\"No\",0,IF(V28=\"Yes\",1,\"\"))","v":""},null,{"$f":"IF(X28=\"No\",0,IF(X28=\"Yes\",1,\"\"))","v":""},null,{"$f":"IF(Z28=\"No\",0,IF(Z28=\"Yes\",1,\"\"))","v":""},null,{"$f":"IF(AB28=\"No\",0,IF(AB28=\"Yes\",1,\"\"))","v":""},null,{"$f":"IF(AD28=\"No\",0,IF(AD28=\"Yes\",1,\"\"))","v":""},null,{"$f":"IF(AF28=\"No\",0,IF(AF28=\"Yes\",1,\"\"))","v":""},null,{"$f":"AVERAGEIF(AH16:AH26,\">=0\")","v":{"$error":"#DIV/0!"}},{"$f":"AVERAGEIF(AI16:AI26,\">=0\")","v":{"$error":"#DIV/0!"}},null,{"$f":"IF(AK28=\"No\",0,IF(AK28=\"Yes\",1,\"\"))","v":""},null,{"$f":"IF(AM28=\"No\",0,IF(AM28=\"Yes\",1,\"\"))","v":""},null,"",null,"",null,"",null,"",null,"",null,"",null,"",null,"",null,{"$f":"AVERAGEIF(BE16:BE26,\">=0\")","v":{"$error":"#DIV/0!"}},{"$f":"AVERAGEIF(BF16:BF26,\">=0\")","v":{"$error":"#DIV/0!"}},null,{"$f":"IF(BH28=\"No\",0,IF(BH28=\"Yes\",1,\"\"))","v":""},null,{"$f":"IF(BJ28=\"No\",0,IF(BJ28=\"Yes\",1,\"\"))","v":""},null,{"$f":"IF(BL28=\"No\",0,IF(BL28=\"Yes\",1,\"\"))","v":""},null,{"$f":"AVERAGEIF(BN16:BN26,\">=0\")","v":{"$error":"#DIV/0!"}},{"$f":"AVERAGEIF(BO16:BO26,\">=0\")","v":{"$error":"#DIV/0!"}},null,{"$f":"IF(BQ28=\"No\",0,IF(BQ28=\"Yes\",1,\"\"))","v":""},null,{"$f":"AVERAGEIF(BS16:BS26,\">=0\")","v":{"$error":"#DIV/0!"}},{"$f":"AVERAGEIF(BT16:BT26,\">=0\")","v":{"$error":"#DIV/0!"}},null,{"$f":"IF(BV28=\"No\",0,IF(BV28=\"Yes\",1,\"\"))","v":""},null,{"$f":"IF(BX28=\"No\",0,IF(BX28=\"Yes\",1,\"\"))","v":""},null,{"$f":"IF(BZ28=\"No\",0,IF(BZ28=\"Yes\",1,\"\"))","v":""},null,{"$f":"IF(CB28=\"No\",0,IF(CB28=\"Yes\",1,\"\"))","v":""},null,{"$f":"IF(CD28=\"No\",0,IF(CD28=\"Yes\",1,\"\"))","v":""},null,{"$f":"IF(CF28=\"No\",0,IF(CF28=\"Yes\",1,\"\"))","v":""},null,{"$f":"AVERAGEIF(CH16:CH26,\">=0\")","v":{"$error":"#DIV/0!"}},{"$f":"AVERAGEIF(CI16:CI26,\">=0\")","v":{"$error":"#DIV/0!"}},null,{"$f":"IF(CK28=\"No\",0,IF(CK28=\"Yes\",1,\"\"))","v":""},null,{"$f":"IF(CM28=\"No\",0,IF(CM28=\"Yes\",1,\"\"))","v":""},null,{"$f":"IF(CO28=\"No\",0,IF(CO28=\"Yes\",1,\"\"))","v":""},null,{"$f":"IF(CQ28=\"No\",0,IF(CQ28=\"Yes\",1,\"\"))","v":""},null,{"$f":"IF(CS28=\"No\",0,IF(CS28=\"Yes\",1,\"\"))","v":""}]
[]
[]
[]
["Summary scores"]
["Content area subsection","Percent agreement among reviewers",null,"Average score among reviewers",null,"Average percent of \ncriteria met",null,"Interpreting these scores"]
["1. Foundational reading skills",{"$f":"AVERAGE(D29:AG29)","v":{"$error":"#DIV/0!"}},{"$f":"AVERAGE(#REF!)","v":{"$error":"#REF!"}},{"$f":"AH29","v":{"$error":"#DIV/0!"}},null,{"$f":"AI29","v":{"$error":"#DIV/0!"}},null,{"$f":"IF(B35>=0.8,(IF(D35>=3,(IF(F35>=0.8,'Interpreting summary scores'!$A$3,'Interpreting summary scores'!$A$6)),(IF(F35>=0.8,'Interpreting summary scores'!$A$5,'Interpreting summary scores'!$A$4)))),(IF(D35>=3,(IF(F35>=0.8,'Interpreting summary scores'!$A$8,'Interpreting summary scores'!$A$9)),(IF(F35>=0.8,'Interpreting summary scores'!$A$10,'Interpreting summary scores'!$A$7)))))","v":{"$error":"#DIV/0!"}}]
["2. Fluency",{"$f":"AVERAGE(AK29:BC29)","v":{"$error":"#DIV/0!"}},null,{"$f":"BE29","v":{"$error":"#DIV/0!"}},null,{"$f":"BF29","v":{"$error":"#DIV/0!"}},null,{"$f":"IF(B36>=0.8,(IF(D36>=3,(IF(F36>=0.8,'Interpreting summary scores'!$A$3,'Interpreting summary scores'!$A$6)),(IF(F36>=0.8,'Interpreting summary scores'!$A$5,'Interpreting summary scores'!$A$4)))),(IF(D36>=3,(IF(F36>=0.8,'Interpreting summary scores'!$A$8,'Interpreting summary scores'!$A$9)),(IF(F36>=0.8,'Interpreting summary scores'!$A$10,'Interpreting summary scores'!$A$7)))))","v":{"$error":"#DIV/0!"}}]
["3. Writing development and skills",{"$f":"AVERAGE(BH29:BL29)","v":{"$error":"#DIV/0!"}},null,{"$f":"BN29","v":{"$error":"#DIV/0!"}},null,{"$f":"BO29","v":{"$error":"#DIV/0!"}},null,{"$f":"IF(B37>=0.8,(IF(D37>=3,(IF(F37>=0.8,'Interpreting summary scores'!$A$3,'Interpreting summary scores'!$A$6)),(IF(F37>=0.8,'Interpreting summary scores'!$A$5,'Interpreting summary scores'!$A$4)))),(IF(D37>=3,(IF(F37>=0.8,'Interpreting summary scores'!$A$8,'Interpreting summary scores'!$A$9)),(IF(F37>=0.8,'Interpreting summary scores'!$A$10,'Interpreting summary scores'!$A$7)))))","v":{"$error":"#DIV/0!"}}]
["4. Speaking and listening development",{"$f":"AVERAGE(BQ29)","v":{"$error":"#DIV/0!"}},null,{"$f":"BS29","v":{"$error":"#DIV/0!"}},null,{"$f":"BT29","v":{"$error":"#DIV/0!"}},null,{"$f":"IF(B38>=0.8,(IF(D38>=3,(IF(F38>=0.8,'Interpreting summary scores'!$A$3,'Interpreting summary scores'!$A$6)),(IF(F38>=0.8,'Interpreting summary scores'!$A$5,'Interpreting summary scores'!$A$4)))),(IF(D38>=3,(IF(F38>=0.8,'Interpreting summary scores'!$A$8,'Interpreting summary scores'!$A$9)),(IF(F38>=0.8,'Interpreting summary scores'!$A$10,'Interpreting summary scores'!$A$7)))))","v":{"$error":"#DIV/0!"}}]
["5. Language development and skills",{"$f":"AVERAGE(BV29:CF29)","v":{"$error":"#DIV/0!"}},null,{"$f":"CH29","v":{"$error":"#DIV/0!"}},null,{"$f":"CI29","v":{"$error":"#DIV/0!"}},null,{"$f":"IF(B39>=0.8,(IF(D39>=3,(IF(F39>=0.8,'Interpreting summary scores'!$A$3,'Interpreting summary scores'!$A$6)),(IF(F39>=0.8,'Interpreting summary scores'!$A$5,'Interpreting summary scores'!$A$4)))),(IF(D39>=3,(IF(F39>=0.8,'Interpreting summary scores'!$A$8,'Interpreting summary scores'!$A$9)),(IF(F39>=0.8,'Interpreting summary scores'!$A$10,'Interpreting summary scores'!$A$7)))))","v":{"$error":"#DIV/0!"}}]
[]
[]
[]
[]
[]
[]
[]
[]
[]
[]
[]
[]
[]
[]
[]
[]
[]
[]
[]
[]
[{"$f":"CONCATENATE(\"M2-\",B5,\" \",B6)","v":"M2- -Select-"}]

{"sheet":"M3- -Select-","index":2,"n_rows":60,"n_cols":98,"rows_kept":60,"cut":false,"hidden":false,"merged":[[0,0,0,1],[12,3,12,32],[12,36,12,57],[12,59,12,66],[12,68,12,69],[12,73,12,86],[12,88,12,97],[13,5,13,6],[13,7,13,8],[13,9,13,12],[13,13,13,30],[13,31,13,32],[13,36,13,57],[13,59,13,66],[13,68,13,69],[12,70,12,71],[13,70,13,71],[13,73,13,86],[13,88,13,97],[27,0,27,1],[27,3,27,4],[27,5,27,6],[27,7,27,8],[27,9,27,10],[27,11,27,12],[27,13,27,14],[27,40,27,41],[27,15,27,16],[27,17,27,18],[27,19,27,20],[27,21,27,22],[27,23,27,24],[27,25,27,26],[27,27,27,28],[27,29,27,30],[27,31,27,32],[27,36,27,37],[27,38,27,39],[27,68,27,69],[27,73,27,74],[27,42,27,43],[27,44,27,45],[27,46,27,47],[27,48,27,49],[27,50,27,51],[27,52,27,53],[27,90,27,91],[27,92,27,93],[27,94,27,95],[27,96,27,97],[32,1,32,6],[32,7,32,10],[27,75,27,76],[27,77,27,78],[27,79,27,80],[27,81,27,82],[27,83,27,84],[27,88,27,89],[27,54,27,55],[27,59,27,60],[27,61,27,62],[27,63,27,64],[33,1,33,2],[33,3,33,4],[33,5,33,6],[33,7,33,10],[34,1,34,2],[34,3,34,4],[34,5,34,6],[34,7,34,10],[35,1,35,2],[35,3,35,4],[35,5,35,6],[35,7,35,10],[36,1,36,2],[36,3,36,4],[36,5,36,6],[36,7,36,10],[37,7,37,10],[38,1,38,2],[38,3,38,4],[38,5,38,6],[38,7,38,10],[39,1,39,2],[39,3,39,4],[39,5,39,6],[37,1,37,2],[37,3,37,4],[37,5,37,6]]}
["K-2 Facilitator Spreadsheet"]
[]
["General information"]
["Date reviews compiled:"]
["Name of materials:"]
["Intended grade level(s):",{"$f":"IF(J1=\"\",\"-Select-\")","v":"-Select-"}]
["Materials type:",{"$f":"IF(J1=\"\",\"-Select-\")","v":"-Select-"}]
[]
[]
[]
[]
[]
["Compiling reviewer ratings",null,null,"Foundational reading skills",null,null,null,null,null,null,null,null,null,null,null,null,null,null,null,null,null,null,null,null,null,null,null,null,null,null,null,null,null,null,null,null,"Reading comprehension for literary and informational texts",null,null,null,null,null,null,null,null,null,null,null,null,null,null,null,null,null,null,null,null,null,null,"Writing development and skills",null,null,null,null,null,null,null,null,"Speaking and listening development and skills",null,null,null,null,"Language development and skills",null,null,null,null,null,null,null,null,null,null,null,null,null,null,"Overall Rating"]
[null,null,null,null,null,"Print concepts",null,"Phonological awareness",null,"Phonemic awareness",null,null,null,"Phonics",null,null,null,null,null,null,null,null,null,null,null,null,null,null,null,null,null,"Fluency"]
["Reviewer Name","Materials reviewed",null,"1.1 Rating","1.1 Support","1.2 Rating","1.2 Support","1.3 Rating","1.3 Support","1.4 Rating","1.4 Support","1.5 Rating","1.5 Support","1.6 Rating","1.6 Support","1.7 Rating","1.7 Support","1.8 Rating","1.8 Support","1.9 Rating","1.9 Support","1.10 Rating","1.10 Support","1.11 Rating","1.11 Support","1.12 Rating","1.12 Support","1.13 Rating","1.13 Support","1.14 Rating","1.14 Support","1.15 Rating","1.15 Support","Average rating per reviewer","Average percent criteria met (>2) per reviewer",null,"2.1 Rating","2.1 Support","2.2 Rating","2.2 Support","2.3 Rating","2.3 Support","2.4 Rating","2.4 Support","2.5 Rating","2.5 Support","2.6 Rating","2.6 Support","2.7 Rating","2.7 Support","2.8 Rating","2.8 Support","2.9 Rating","2.9 Support","2.10 Rating","2.10 Support","Average rating per reviewer","Average percent criteria met (>2) per reviewer",null,"3.1 Rating","3.1 Support","3.2 Rating","3.2 Support","3.3 Rating","3.3 Support","Average rating per reviewer","Average percent criteria met (>2) per reviewer",null,"4.1 Rating","4.1 Support","Average rating per reviewer","Average percent criteria met (>2) per reviewer",null,"5.1 Rating","5.1 Support","5.2 Rating","5.2 Support","5.3 Rating","5.3 Support","5.4 Rating","5.4 Support","5.5 Rating","5.5 Support","5.6 Rating","5.6 Support","Average rating per reviewer","Average percent criteria met (>2) per reviewer",null,"1 Rating","1 Support","2 Rating","2 Support","3 Rating","3 Support","4 Rating","4 Support","5 Rating","5 Support"]
[null,null,null,null,null,null,null,null,null,null,null,null,null,null,null,null,null,null,null,null,null,null,null,null,null,null,null,null,null,null,null,null,null,{"$f":"AVERAGE(D16,F16,H16,J16,L16,N16,P16,R16,T16,V16,X16,Z16,AB16,AD16,AF16)","v":{"$error":"#DIV/0!"}},{"$f":"(COUNTIF(D16,\">2\")+COUNTIF(F16,\">2\")+COUNTIF(H16,\">2\")+COUNTIF(J16,\">2\")+COUNTIF(L16,\">2\")+COUNTIF(N16,\">2\")+COUNTIF(P16,\">2\")+COUNTIF(R16,\">2\")+COUNTIF(T16,\">2\")+COUNTIF(V16,\">2\")+COUNTIF(X16,\">2\")+COUNTIF(Z16,\">2\")+COUNTIF(AB16,\">2\")+COUNTIF(AD16,\">2\")+COUNTIF(AF16,\">2\"))/COUNTA(D16,F16,H16,J16,L16,N16,P16,R16,T16,V16,X16,Z16,AB16,AD16,AF16)","v":{"$error":"#DIV/0!"}},null,null,null,null,null,null,null,null,null,null,null,null,null,null,null,null,null,null,null,null,null,{"$f":"AVERAGE(AK16,AM16,AO16,AQ16,AS16,AU16,AW16,AY16,BA16,BC16)","v":{"$error":"#DIV/0!"}},{"$f":"(COUNTIF(AK16,\">2\")+COUNTIF(AM16,\">2\")+COUNTIF(AO16,\">2\")+COUNTIF(AQ16,\">2\")+COUNTIF(AS16,\">2\")+COUNTIF(AU16,\">2\")+COUNTIF(AW16,\">2\")+COUNTIF(AY16,\">2\")+COUNTIF(BA16,\">2\")+COUNTIF(BC16,\">2\"))/COUNTA(AK16,AM16,AO16,AQ16,AS16,AU16,AW16,AY16,BA16,BC16)","v":{"$error":"#DIV/0!"}},null,null,null,null,null,null,null,{"$f":"AVERAGE(BH16,BJ16,BL16)","v":{"$error":"#DIV/0!"}},{"$f":"(COUNTIF(BH16,\">2\")+COUNTIF(BJ16,\">2\")+COUNTIF(BL16,\">2\"))/COUNTA(BH16,BJ16,BL16)","v":{"$error":"#DIV/0!"}},null,null,null,{"$f":"AVERAGE(BQ16)","v":{"$error":"#DIV/0!"}},{"$f":"(COUNTIF(BQ16,\">2\"))/COUNTA(BQ16)","v":{"$error":"#DIV/0!"}},null,null,null,null,null,null,null,null,null,null,null,null,null,{"$f":"AVERAGE(BV16,BX16,BZ16,CB16,CD16,CF16)","v":{"$error":"#DIV/0!"}},{"$f":"(COUNTIF(BV16,\">2\")+COUNTIF(BX16,\">2\")+COUNTIF(BZ16,\">2\")+COUNTIF(CB16,\">2\")+COUNTIF(CD16,\">2\")+COUNTIF(CF16,\">2\"))/COUNTA(BV16,BX16,BZ16,CB16,CD16,CF16)","v":{"$error":"#DIV/0!"}}]
[null,null,null,null,null,null,null,null,null,null,null,null,null,null,null,null,null,null,null,null,null,null,null,null,null,null,null,null,null,null,null,null,null,{"$f":"AVERAGE(D17,F17,H17,J17,L17,N17,P17,R17,T17,V17,X17,Z17,AB17,AD17,AF17)","v":{"$error":"#DIV/0!"}},{"$error":"#DIV/0!"},null,null,null,null,null,null,null,null,null,null,null,null,null,null,null,null,null,null,null,null,null,{"$f":"AVERAGE(AK17,AM17,AO17,AQ17,AS17,AU17,AW17,AY17,BA17,BC17)","v":{"$error":"#DIV/0!"}},{"$f":"(COUNTIF(AK17,\">2\")+COUNTIF(AM17,\">2\")+COUNTIF(AO17,\">2\")+COUNTIF(AQ17,\">2\")+COUNTIF(AS17,\">2\")+COUNTIF(AU17,\">2\")+COUNTIF(AW17,\">2\")+COUNTIF(AY17,\">2\")+COUNTIF(BA17,\">2\")+COUNTIF(BC17,\">2\"))/COUNTA(AK17,AM17,AO17,AQ17,AS17,AU17,AW17,AY17,BA17,BC17)","v":{"$error":"#DIV/0!"}},null,null,null,null,null,null,null,{"$f":"AVERAGE(BH17,BJ17,BL17)","v":{"$error":"#DIV/0!"}},{"$f":"(COUNTIF(BH17,\">2\")+COUNTIF(BJ17,\">2\")+COUNTIF(BL17,\">2\"))/COUNTA(BH17,BJ17,BL17)","v":{"$error":"#DIV/0!"}},null,null,null,{"$f":"AVERAGE(BQ17)","v":{"$error":"#DIV/0!"}},{"$f":"(COUNTIF(BQ17,\">2\"))/COUNTA(BQ17)","v":{"$error":"#DIV/0!"}},null,null,null,null,null,null,null,null,null,null,null,null,null,{"$f":"AVERAGE(BV17,BX17,BZ17,CB17,CD17,CF17)","v":{"$error":"#DIV/0!"}},{"$f":"(COUNTIF(BV17,\">2\")+COUNTIF(BX17,\">2\")+COUNTIF(BZ17,\">2\")+COUNTIF(CB17,\">2\")+COUNTIF(CD17,\">2\")+COUNTIF(CF17,\">2\"))/COUNTA(BV17,BX17,BZ17,CB17,CD17,CF17)","v":{"$error":"#DIV/0!"}}]
[null,null,null,null,null,null,null,null,null,null,null,null,null,null,null,null,null,null,null,null,null,null,null,null,null,null,null,null,null,null,null,null,null,{"$error":"#DIV/0!"},{"$error":"#DIV/0!"},null,null,null,null,null,null,null,null,null,null,null,null,null,null,null,null,null,null,null,null,null,{"$error":"#DIV/0!"},{"$error":"#DIV/0!"},null,null,null,null,null,null,null,{"$error":"#DIV/0!"},{"$error":"#DIV/0!"},null,null,null,{"$error":"#DIV/0!"},{"$error":"#DIV/0!"},null,null,null,null,null,null,null,null,null,null,null,null,null,{"$error":"#DIV/0!"},{"$error":"#DIV/0!"}]
[null,null,null,null,null,null,null,null,null,null,null,null,null,null,null,null,null,null,null,null,null,null,null,null,null,null,null,null,null,null,null,null,null,{"$error":"#DIV/0!"},{"$error":"#DIV/0!"},null,null,null,null,null,null,null,null,null,null,null,null,null,null,null,null,null,null,null,null,null,{"$error":"#DIV/0!"},{"$error":"#DIV/0!"},null,null,null,null,null,null,null,{"$error":"#DIV/0!"},{"$error":"#DIV/0!"},null,null,null,{"$error":"#DIV/0!"},{"$error":"#DIV/0!"},null,null,null,null,null,null,null,null,null,null,null,null,null,{"$error":"#DIV/0!"},{"$error":"#DIV/0!"}]
[null,null,null,null,null,null,null,null,null,null,null,null,null,null,null,null,null,null,null,null,null,null,null,null,null,null,null,null,null,null,null,null,null,{"$error":"#DIV/0!"},{"$error":"#DIV/0!"},null,null,null,null,null,null,null,null,null,null,null,null,null,null,null,null,null,null,null,null,null,{"$error":"#DIV/0!"},{"$error":"#DIV/0!"},null,null,null,null,null,null,null,{"$error":"#DIV/0!"},{"$error":"#DIV/0!"},null,null,null,{"$error":"#DIV/0!"},{"$error":"#DIV/0!"},null,null,null,null,null,null,null,null,null,null,null,null,null,{"$error":"#DIV/0!"},{"$error":"#DIV/0!"}]
[null,null,null,null,null,null,null,null,null,null,null,null,null,null,null,null,null,null,null,null,null,null,null,null,null,null,null,null,null,null,null,null,null,{"$error":"#DIV/0!"},{"$error":"#DIV/0!"},null,null,null,null,null,null,null,null,null,null,null,null,null,null,null,null,null,null,null,null,null,{"$error":"#DIV/0!"},{"$error":"#DIV/0!"},null,null,null,null,null,null,null,{"$error":"#DIV/0!"},{"$error":"#DIV/0!"},null,null,null,{"$error":"#DIV/0!"},{"$error":"#DIV/0!"},null,null,null,null,null,null,null,null,null,null,null,null,null,{"$error":"#DIV/0!"},{"$error":"#DIV/0!"}]
[null,null,null,null,null,null,null,null,null,null,null,null,null,null,null,null,null,null,null,null,null,null,null,null,null,null,null,null,null,null,null,null,null,{"$error":"#DIV/0!"},{"$error":"#DIV/0!"},null,null,null,null,null,null,null,null,null,null,null,null,null,null,null,null,null,null,null,null,null,{"$error":"#DIV/0!"},{"$error":"#DIV/0!"},null,null,null,null,null,null,null,{"$error":"#DIV/0!"},{"$error":"#DIV/0!"},null,null,null,{"$error":"#DIV/0!"},{"$error":"#DIV/0!"},null,null,null,null,null,null,null,null,null,null,null,null,null,{"$error":"#DIV/0!"},{"$error":"#DIV/0!"}]
[null,null,null,null,null,null,null,null,null,null,null,null,null,null,null,null,null,null,null,null,null,null,null,null,null,null,null,null,null,null,null,null,null,{"$error":"#DIV/0!"},{"$error":"#DIV/0!"},null,null,null,null,null,null,null,null,null,null,null,null,null,null,null,null,null,null,null,null,null,{"$error":"#DIV/0!"},{"$error":"#DIV/0!"},null,null,null,null,null,null,null,{"$error":"#DIV/0!"},{"$error":"#DIV/0!"},null,null,null,{"$error":"#DIV/0!"},{"$error":"#DIV/0!"},null,null,null,null,null,null,null,null,null,null,null,null,null,{"$error":"#DIV/0!"},{"$error":"#DIV/0!"}]
[null,null,null,null,null,null,null,null,null,null,null,null,null,null,null,null,null,null,null,null,null,null,null,null,null,null,null,null,null,null,null,null,null,{"$error":"#DIV/0!"},{"$error":"#DIV/0!"},null,null,null,null,null,null,null,null,null,null,null,null,null,null,null,null,null,null,null,null,null,{"$error":"#DIV/0!"},{"$error":"#DIV/0!"},null,null,null,null,null,null,null,{"$error":"#DIV/0!"},{"$error":"#DIV/0!"},null,null,null,{"$error":"#DIV/0!"},{"$error":"#DIV/0!"},null,null,null,null,null,null,null,null,null,null,null,null,null,{"$error":"#DIV/0!"},{"$error":"#DIV/0!"}]
[null,null,null,null,null,null,null,null,null,null,null,null,null,null,null,null,null,null,null,null,null,null,null,null,null,null,null,null,null,null,null,null,null,{"$error":"#DIV/0!"},{"$error":"#DIV/0!"},null,null,null,null,null,null,null,null,null,null,null,null,null,null,null,null,null,null,null,null,null,{"$error":"#DIV/0!"},{"$error":"#DIV/0!"},null,null,null,null,null,null,null,{"$error":"#DIV/0!"},{"$error":"#DIV/0!"},null,null,null,{"$error":"#DIV/0!"},{"$error":"#DIV/0!"},null,null,null,null,null,null,null,null,null,null,null,null,null,{"$error":"#DIV/0!"},{"$error":"#DIV/0!"}]
[null,null,null,null,null,null,null,null,null,null,null,null,null,null,null,null,null,null,null,null,null,null,null,null,null,null,null,null,null,null,null,null,null,{"$error":"#DIV/0!"},{"$error":"#DIV/0!"},null,null,null,null,null,null,null,null,null,null,null,null,null,null,null,null,null,null,null,null,null,{"$error":"#DIV/0!"},{"$error":"#DIV/0!"},null,null,null,null,null,null,null,{"$error":"#DIV/0!"},{"$error":"#DIV/0!"},null,null,null,{"$error":"#DIV/0!"},{"$error":"#DIV/0!"},null,null,null,null,null,null,null,null,null,null,null,null,null,{"$error":"#DIV/0!"},{"$error":"#DIV/0!"}]
[]
["Do the reviewers agree on the rating? (Yes or No)"]
["Dichotomous scoring",null,null,{"$f":"IF(D28=\"No\",0,IF(D28=\"Yes\",1,\"\"))","v":""},null,{"$f":"IF(F28=\"No\",0,IF(F28=\"Yes\",1,\"\"))","v":""},null,{"$f":"IF(H28=\"No\",0,IF(H28=\"Yes\",1,\"\"))","v":""},null,{"$f":"IF(J28=\"No\",0,IF(J28=\"Yes\",1,\"\"))","v":""},null,{"$f":"IF(L28=\"No\",0,IF(L28=\"Yes\",1,\"\"))","v":""},null,{"$f":"IF(N28=\"No\",0,IF(N28=\"Yes\",1,\"\"))","v":""},null,{"$f":"IF(P28=\"No\",0,IF(P28=\"Yes\",1,\"\"))","v":""},null,{"$f":"IF(R28=\"No\",0,IF(R28=\"Yes\",1,\"\"))","v":""},null,{"$f":"IF(T28=\"No\",0,IF(T28=\"Yes\",1,\"\"))","v":""},null,{"$f":"IF(V28=\"No\",0,IF(V28=\"Yes\",1,\"\"))","v":""},null,{"$f":"IF(X28=\"No\",0,IF(X28=\"Yes\",1,\"\"))","v":""},null,{"$f":"IF(Z28=\"No\",0,IF(Z28=\"Yes\",1,\"\"))","v":""},null,{"$f":"IF(AB28=\"No\",0,IF(AB28=\"Yes\",1,\"\"))","v":""},null,{"$f":"IF(AD28=\"No\",0,IF(AD28=\"Yes\",1,\"\"))","v":""},null,{"$f":"IF(AF28=\"No\",0,IF(AF28=\"Yes\",1,\"\"))","v":""},null,{"$f":"AVERAGEIF(AH16:AH26,\">=0\")","v":{"$error":"#DIV/0!"}},{"$f":"AVERAGEIF(AI16:AI26,\">=0\")","v":{"$error":"#DIV/0!"}},null,{"$f":"IF(AK28=\"No\",0,IF(AK28=\"Yes\",1,\"\"))","v":""},null,{"$f":"IF(AM28=\"No\",0,IF(AM28=\"Yes\",1,\"\"))","v":""},null,"",null,"",null,"",null,"",null,"",null,"",null,"",null,"",null,{"$f":"AVERAGEIF(BE16:BE26,\">=0\")","v":{"$error":"#DIV/0!"}},{"$f":"AVERAGEIF(BF16:BF26,\">=0\")","v":{"$error":"#DIV/0!"}},null,{"$f":"IF(BH28=\"No\",0,IF(BH28=\"Yes\",1,\"\"))","v":""},null,{"$f":"IF(BJ28=\"No\",0,IF(BJ28=\"Yes\",1,\"\"))","v":""},null,{"$f":"IF(BL28=\"No\",0,IF(BL28=\"Yes\",1,\"\"))","v":""},null,{"$f":"AVERAGEIF(BN16:BN26,\">=0\")","v":{"$error":"#DIV/0!"}},{"$f":"AVERAGEIF(BO16:BO26,\">=0\")","v":{"$error":"#DIV/0!"}},null,{"$f":"IF(BQ28=\"No\",0,IF(BQ28=\"Yes\",1,\"\"))","v":""},null,{"$f":"AVERAGEIF(BS16:BS26,\">=0\")","v":{"$error":"#DIV/0!"}},{"$f":"AVERAGEIF(BT16:BT26,\">=0\")","v":{"$error":"#DIV/0!"}},null,{"$f":"IF(BV28=\"No\",0,IF(BV28=\"Yes\",1,\"\"))","v":""},null,{"$f":"IF(BX28=\"No\",0,IF(BX28=\"Yes\",1,\"\"))","v":""},null,{"$f":"IF(BZ28=\"No\",0,IF(BZ28=\"Yes\",1,\"\"))","v":""},null,{"$f":"IF(CB28=\"No\",0,IF(CB28=\"Yes\",1,\"\"))","v":""},null,{"$f":"IF(CD28=\"No\",0,IF(CD28=\"Yes\",1,\"\"))","v":""},null,{"$f":"IF(CF28=\"No\",0,IF(CF28=\"Yes\",1,\"\"))","v":""},null,{"$f":"AVERAGEIF(CH16:CH26,\">=0\")","v":{"$error":"#DIV/0!"}},{"$f":"AVERAGEIF(CI16:CI26,\">=0\")","v":{"$error":"#DIV/0!"}},null,{"$f":"IF(CK28=\"No\",0,IF(CK28=\"Yes\",1,\"\"))","v":""},null,{"$f":"IF(CM28=\"No\",0,IF(CM28=\"Yes\",1,\"\"))","v":""},null,{"$f":"IF(CO28=\"No\",0,IF(CO28=\"Yes\",1,\"\"))","v":""},null,{"$f":"IF(CQ28=\"No\",0,IF(CQ28=\"Yes\",1,\"\"))","v":""},null,{"$f":"IF(CS28=\"No\",0,IF(CS28=\"Yes\",1,\"\"))","v":""}]
[]
[]
[]
["Summary scores"]
["Content area subsection","Percent agreement among reviewers",null,"Average score among reviewers",null,"Average percent of \ncriteria met",null,"Interpreting these scores"]
["1. Foundational reading skills",{"$f":"AVERAGE(D29:AG29)","v":{"$error":"#DIV/0!"}},{"$f":"AVERAGE(#REF!)","v":{"$error":"#REF!"}},{"$f":"AH29","v":{"$error":"#DIV/0!"}},null,{"$f":"AI29","v":{"$error":"#DIV/0!"}},null,{"$f":"IF(B35>=0.8,(IF(D35>=3,(IF(F35>=0.8,'Interpreting summary scores'!$A$3,'Interpreting summary scores'!$A$6)),(IF(F35>=0.8,'Interpreting summary scores'!$A$5,'Interpreting summary scores'!$A$4)))),(IF(D35>=3,(IF(F35>=0.8,'Interpreting summary scores'!$A$8,'Interpreting summary scores'!$A$9)),(IF(F35>=0.8,'Interpreting summary scores'!$A$10,'Interpreting summary scores'!$A$7)))))","v":{"$error":"#DIV/0!"}}]
["2. Fluency",{"$f":"AVERAGE(AK29:BC29)","v":{"$error":"#DIV/0!"}},null,{"$f":"BE29","v":{"$error":"#DIV/0!"}},null,{"$f":"BF29","v":{"$error":"#DIV/0!"}},null,{"$f":"IF(B36>=0.8,(IF(D36>=3,(IF(F36>=0.8,'Interpreting summary scores'!$A$3,'Interpreting summary scores'!$A$6)),(IF(F36>=0.8,'Interpreting summary scores'!$A$5,'Interpreting summary scores'!$A$4)))),(IF(D36>=3,(IF(F36>=0.8,'Interpreting summary scores'!$A$8,'Interpreting summary scores'!$A$9)),(IF(F36>=0.8,'Interpreting summary scores'!$A$10,'Interpreting summary scores'!$A$7)))))","v":{"$error":"#DIV/0!"}}]
["3. Writing development and skills",{"$f":"AVERAGE(BH29:BL29)","v":{"$error":"#DIV/0!"}},null,{"$f":"BN29","v":{"$error":"#DIV/0!"}},null,{"$f":"BO29","v":{"$error":"#DIV/0!"}},null,{"$f":"IF(B37>=0.8,(IF(D37>=3,(IF(F37>=0.8,'Interpreting summary scores'!$A$3,'Interpreting summary scores'!$A$6)),(IF(F37>=0.8,'Interpreting summary scores'!$A$5,'Interpreting summary scores'!$A$4)))),(IF(D37>=3,(IF(F37>=0.8,'Interpreting summary scores'!$A$8,'Interpreting summary scores'!$A$9)),(IF(F37>=0.8,'Interpreting summary scores'!$A$10,'Interpreting summary scores'!$A$7)))))","v":{"$error":"#DIV/0!"}}]
["4. Speaking and listening development",{"$f":"AVERAGE(BQ29)","v":{"$error":"#DIV/0!"}},null,{"$f":"BS29","v":{"$error":"#DIV/0!"}},null,{"$f":"BT29","v":{"$error":"#DIV/0!"}},null,{"$f":"IF(B38>=0.8,(IF(D38>=3,(IF(F38>=0.8,'Interpreting summary scores'!$A$3,'Interpreting summary scores'!$A$6)),(IF(F38>=0.8,'Interpreting summary scores'!$A$5,'Interpreting summary scores'!$A$4)))),(IF(D38>=3,(IF(F38>=0.8,'Interpreting summary scores'!$A$8,'Interpreting summary scores'!$A$9)),(IF(F38>=0.8,'Interpreting summary scores'!$A$10,'Interpreting summary scores'!$A$7)))))","v":{"$error":"#DIV/0!"}}]
["5. Language development and skills",{"$f":"AVERAGE(BV29:CF29)","v":{"$error":"#DIV/0!"}},null,{"$f":"CH29","v":{"$error":"#DIV/0!"}},null,{"$f":"CI29","v":{"$error":"#DIV/0!"}},null,{"$f":"IF(B39>=0.8,(IF(D39>=3,(IF(F39>=0.8,'Interpreting summary scores'!$A$3,'Interpreting summary scores'!$A$6)),(IF(F39>=0.8,'Interpreting summary scores'!$A$5,'Interpreting summary scores'!$A$4)))),(IF(D39>=3,(IF(F39>=0.8,'Interpreting summary scores'!$A$8,'Interpreting summary scores'!$A$9)),(IF(F39>=0.8,'Interpreting summary scores'!$A$10,'Interpreting summary scores'!$A$7)))))","v":{"$error":"#DIV/0!"}}]
[]
[]
[]
[]
[]
[]
[]
[]
[]
[]
[]
[]
[]
[]
[]
[]
[]
[]
[]
[]
[{"$f":"CONCATENATE(\"M3-\",B5,\" \",B6)","v":"M3- -Select-"}]

{"sheet":"Drop down options","index":3,"n_rows":7,"n_cols":2,"rows_kept":7,"cut":false,"hidden":true,"merged":[]}
["Intended grade level(s) for use :","Materials type:"]
["Kindergarten","Comprehensive Core"]
["Grade 1","Supplemental Intervention"]
["Grade 2","Comprehensive Intervention"]
["K & Grade 1"]
["Grades 1 & 2"]
["K - Grade 2"]

{"sheet":"Interpreting summary scores","index":4,"n_rows":10,"n_cols":4,"rows_kept":10,"cut":false,"hidden":true,"merged":[]}
[]
["Interpretation","Percent agreement among reviewers within section","Average rating among reviewers for section","Average percent of items that met criteria within the section"]
["There is consensus among reviewers that the majority of the items within this subsection met criteria and the average rating exceeded 3.00.","≥ 80 percent","≥ 3.00","≥ 80 percent"]
["There is consensus among reviewers that the average rating for this subsection did not exceed 3.00 and less than 80 percent of the items adequately met criteria.","≥ 80 percent","< 3.00","< 80 percent"]
["There is consensus among reviewers that the majority of the items within this subsection met criteria even though the average rating did not exceed 3.00.","≥ 80 percent","< 3.00","≥ 80 percent"]
["There is consensus among reviewers that the average rating for this subsection exceeded 3.0. However, less than 80 percent of the items adequately met criteria.","≥ 80 percent","≥ 3.00","< 80 percent"]
["There is less than adequate consensus among reviewers. Facilitators should ensure that all reviewers are using the rating scale similarly.","< 80 percent","< 3.00","< 80 percent"]
["There is less than adequate consensus among reviewers even though the majority of the items within this subsection met criteria and the average rating exceeded 3.00. Facilitators should ensure that all reviewers are using the rating scale similarly.","< 80 percent","≥ 3.00","≥ 80 percent"]
["There is less than adequate consensus among reviewers even though the average rating for this subsection exceeded 3.00. Facilitators should ensure that all reviewers are using the rating scale similarly.","< 80 percent","≥ 3.00","< 80 percent"]
["There is less than adequate consensus among reviewers even though the majority of the items within this subsection met criteria. Facilitators should ensure that all reviewers are using the rating scale similarly.","< 80 percent","< 3.00","≥ 80 percent"]